bitfinex/quotes_ETHUSD_20250519
["timestamp","ask_amount","ask_price","bid_price","bid_amount"]
[1747646045821,4.16458437,2401.2,2400.9,0.7973]
[1747646046023,4.16522612,2400.9,2400.6,9.06293813]
[1747646046212,4.16522612,2400.9,2400.6,1.06293813]
[1747646046413,4.16522612,2400.9,2400.7,0.34278721]
[1747646047005,4.16527824,2400.8,2400.7,0.34278721]
[1747646047324,4.16527824,2400.8,2400.7,0.21267769]
[1747646047823,9.7585,2401.4,2400.7,1.15530927]
[1747646048128,4.16495183,2401.0,2400.7,0.94263158]
[1747646048311,4.16485073,2401.1,2400.7,0.94263158]
[1747646048517,4.16495056,2401.0,2400.7,0.94263158]
[1747646049030,4.16485475,2401.1,2400.7,0.94263158]
[1747646049630,4.16494831,2401.0,2400.7,0.94263158]
[1747646050693,4.16494831,2401.0,2400.3,14.974]
[1747646050694,4.16597233,2400.4,2400.3,6.04]
[1747646050898,4.16597233,2400.4,2400.3,0.1301257]
[1747646051311,4.16597233,2400.4,2400.3,0.36315091]
[1747646051944,4.16597233,2400.4,2400.3,0.57584861]
[1747646052311,4.16597233,2400.4,2400.3,0.2126977]
[1747646052805,4.93347233,2400.4,2400.3,0.2126977]
[1747646053003,4.16631947,2400.2,2400.1,8.947]
[1747646053203,4.16631947,2400.2,2400.1,0.13015007]
[1747646053830,4.16631947,2400.2,2400.1,0.36327222]
[1747646054267,4.93347233,2400.4,2400.1,0.57607131]
[1747646054576,4.16575927,2400.6,2400.3,0.8131]
[1747646054727,4.16582161,2400.5,2400.3,0.8131]
[1747646055253,4.16545831,2400.7,2400.1,0.68708753]
[1747646055454,4.16615649,2400.3,2400.1,0.21279909]
[1747646056042,4.16604412,2400.4,2400.2,0.13014563]
[1747646056560,4.16590241,2400.5,2400.0,4.97969192]
[1747646056931,4.16590241,2400.5,2400.1,4.16647654]
[1747646057142,4.16597718,2400.4,2400.0,4.97969192]
[1747646057342,4.16597718,2400.4,2400.1,0.13014298]
[1747646057763,4.16597718,2400.4,2400.2,0.13014298]
[1747646058429,4.16589139,2400.5,2400.1,0.13014298]
[1747646058625,0.7675,2400.9,2400.1,0.13014298]
[1747646058855,4.16510475,2400.9,2400.4,4.16589864]
[1747646059069,8.0,2401.3,2400.4,4.16589864]
[1747646059070,6.14566773,2401.5,2401.0,0.767]
[1747646059255,1.1805,2401.5,2401.0,9.716]
[1747646059570,5.34461562,2401.5,2401.1,0.13014298]
[1747646059759,5.34461562,2401.5,2401.1,0.34282146]
[1747646059942,1.1805,2401.5,2401.2,0.13014298]
[1747646060347,1.1805,2401.5,2401.1,0.21267848]
[1747646060538,1.1805,2401.5,2401.1,5.14175271]
[1747646061368,1.1805,2401.5,2401.2,0.13008963]
[1747646061963,1.1805,2401.5,2401.2,4.16450026]
[1747646062164,1.1805,2401.5,2401.2,4.16451252]
[1747646062875,1.1805,2401.5,2401.1,4.92898353]
[1747646063175,4.16441094,2401.3,2401.2,1.46449835]
[1747646063383,4.16430388,2401.4,2401.2,0.13009061]
[1747646063682,1.1805,2401.5,2401.2,0.13009061]
[1747646063894,1.1805,2401.5,2401.3,4.16430833]
[1747646064187,1.1805,2401.5,2401.4,4.16423752]
[1747646064388,1.1805,2401.5,2401.4,4.97503752]
[1747646064587,1.1805,2401.5,2401.4,14.03207787]
[1747646064878,1.1805,2401.5,2401.4,14.26501811]
[1747646065566,1.1805,2401.5,2401.4,2.10078059]
[1747646065950,1.1805,2401.5,2401.4,2.31329628]
[1747646066149,1.1805,2401.5,2401.4,6.4775338]
[1747646066582,1.1805,2401.5,2401.4,6.47751364]
[1747646070146,1.1805,2401.5,2401.4,1.50247612]
[1747646070346,1.1805,2401.5,2401.4,0.57552638]
[1747646070675,1.1805,2401.5,2401.4,0.34258614]
[1747646070882,1.1805,2401.5,2401.4,4.29430797]
[1747646072685,1.1805,2401.5,2401.4,0.13007045]
[1747646073272,1.1805,2401.5,2401.3,4.16430999]
[1747646073571,1.1805,2401.5,2401.4,1.388731]
[1747646074302,4.16424149,2401.4,2401.2,8.919]
[1747646074458,5.34462237,2401.5,2401.2,8.919]
[1747646075007,4.16431529,2401.4,2401.3,0.13007991]
[1747646075296,4.92751529,2401.4,2401.3,0.13007991]
[1747646075498,4.16480321,2401.1,2400.9,0.26563813]
[1747646075657,4.16493127,2401.0,2400.9,0.26563813]
[1747646076077,4.95033127,2401.0,2400.9,0.26563813]
[1747646076499,4.16527824,2400.8,2400.4,13.84485671]
[1747646076816,4.16574796,2400.6,2400.4,8.919]
[1747646076961,4.96077007,2400.5,2400.2,0.26563813]
[1747646077165,4.16614589,2400.3,2400.2,0.26563813]
[1747646079202,21.86494589,2400.3,2400.2,0.26563813]
[1747646079995,21.86494589,2400.3,2399.4,31.07066224]
[1747646080301,4.16642161,2400.2,2399.5,4.16736623]
[1747646080484,4.16671268,2400.0,2399.5,4.29753627]
[1747646080884,4.16695927,2399.9,2399.4,31.07062448]
[1747646081278,4.16675465,2400.0,2399.5,4.16751327]
[1747646081892,4.1663772,2400.2,2399.6,4.16725821]
[1747646082199,4.16667809,2400.0,2399.5,4.16751428]
[1747646082404,4.16684798,2399.9,2399.5,4.16751428]
[1747646082703,4.16684798,2399.9,2399.4,31.07060933]
[1747646083388,4.16684798,2399.9,2399.5,4.16751979]
[1747646083571,4.16650845,2400.1,2399.5,4.16751979]
[1747646083998,0.7713,2400.5,2399.7,4.16718756]
[1747646084310,4.16569783,2400.6,2400.1,4.16635359]
[1747646084808,4.98351294,2400.9,2400.0,8.923]
[1747646085121,4.16606762,2400.4,2400.0,8.923]
[1747646085828,4.1658569,2400.5,2400.0,13.08965753]
[1747646086027,4.16556335,2400.7,2400.2,4.16614888]
[1747646086211,4.16458437,2401.2,2400.6,4.16552562]
[1747646086401,4.16491909,2401.1,2400.6,4.16552562]
[1747646086606,4.16491909,2401.1,2400.7,0.8013]
[1747646087423,4.16510532,2400.9,2400.5,13.08870191]
[1747646087634,4.16545174,2400.7,2400.5,8.923]
[1747646087832,4.16520023,2400.9,2400.5,8.923]
[1747646088205,4.1652956,2400.8,2400.5,8.923]
[1747646088533,4.16545267,2400.7,2400.5,8.923]
[1747646088719,4.16546602,2400.7,2400.5,8.923]
[1747646089498,4.16535767,2400.8,2400.5,8.923]
[1747646090229,4.16559939,2400.7,2400.5,8.923]
[1747646090602,4.16535621,2400.8,2400.5,8.923]
[1747646090928,4.16549697,2400.7,2400.5,8.923]
[1747646091297,4.92794674,2400.8,2400.5,8.923]
[1747646091627,4.16552613,2400.7,2400.5,8.923]
[1747646092391,4.16562526,2400.6,2400.5,8.923]
[1747646092815,4.1655214,2400.7,2400.5,8.923]
[1747646093030,4.16545618,2400.7,2400.5,8.923]
[1747646093840,4.16562526,2400.6,2400.5,8.923]
[1747646094000,4.16553243,2400.7,2400.5,8.923]
[1747646094423,4.16562526,2400.6,2400.5,8.923]
[1747646094734,4.16554898,2400.7,2400.5,8.923]
[1747646094931,4.16562526,2400.6,2400.5,8.923]
[1747646095111,4.16555905,2400.7,2400.5,8.923]
[1747646095732,4.92790612,2400.8,2400.4,4.1659494]
[1747646096045,15.82787842,2401.3,2400.4,0.41661199]
[1747646096046,0.8323,2401.0,2400.4,0.41661199]
[1747646096226,4.16485436,2401.1,2400.7,4.16543275]
[1747646097033,4.16494235,2401.0,2400.6,4.16557823]
[1747646097229,4.16516848,2400.9,2400.5,4.96149339]
[1747646097399,4.16516848,2400.9,2400.5,0.7958]
[1747646097595,4.16534654,2400.8,2400.6,0.13012116]
[1747646097801,4.16545174,2400.7,2400.6,0.13012116]
[1747646099225,4.93705435,2400.8,2400.6,0.13012116]
[1747646099426,4.16535435,2400.8,2400.6,0.13012116]
[1747646099840,4.16570427,2400.6,2400.2,12.98217617]
[1747646100040,4.16551843,2400.7,2400.2,8.8159]
[1747646100540,0.91076866,2400.8,2400.3,0.36321217]
[1747646100541,4.16597233,2400.4,2400.3,0.36321217]
[1747646101039,4.94288057,2400.6,2400.3,0.36321217]
[1747646101245,4.1658844,2400.5,2400.3,0.36321217]
[1747646101444,4.1658844,2400.5,2400.3,0.13012381]
[1747646101612,4.1658844,2400.5,2400.1,13.06048678]
[1747646101811,4.1660279,2400.4,2400.1,8.894]
[1747646102111,4.16623106,2400.3,2400.1,8.894]
[1747646102311,4.16623106,2400.3,2400.2,0.13014783]
[1747646102521,0.7772,2400.6,2400.2,0.13014783]
[1747646102720,4.1660157,2400.4,2400.2,0.13014783]
[1747646102921,4.16614589,2400.3,2400.2,0.13014783]
[1747646103127,4.99936205,2400.3,2400.2,0.13014783]
[1747646103450,13.81807979,2400.3,2399.7,0.26563813]
[1747646103631,4.16701391,2399.8,2399.7,0.26563813]
[1747646104248,4.98911391,2399.8,2399.7,0.4991873]
[1747646104408,5.03063165,2399.8,2399.7,0.4991873]
[1747646104607,19.39128756,2399.8,2399.7,0.4991873]
[1747646104817,7.68646117,2399.8,2399.7,0.23354917]
[1747646105017,4.97779476,2400.3,2399.8,4.16701202]
[1747646105217,4.16632537,2400.2,2399.8,0.7586]
[1747646105442,4.16651099,2400.1,2399.8,0.7586]
[1747646105641,4.16683593,2400.0,2399.5,0.7586]
[1747646105950,4.16683593,2400.0,2399.6,0.13016602]
[1747646106146,4.16631947,2400.2,2399.7,4.16718756]
[1747646106444,4.16650075,2400.1,2399.6,1.28588262]
[1747646106651,4.16658923,2400.1,2399.8,0.13016602]
[1747646107011,4.1663218,2400.2,2399.6,5.32304997]
[1747646107347,4.1663218,2400.2,2399.7,0.3634836]
[1747646107552,4.97770879,2400.3,2399.7,4.53065498]
[1747646107718,0.8174,2400.7,2400.0,0.8126]
[1747646107919,0.8174,2401.0,2400.2,4.16631947]
[1747646108139,4.16560533,2400.7,2400.0,9.6926]
[1747646108310,4.16552869,2400.7,2400.2,4.16623877]
[1747646108510,4.16563588,2400.6,2400.1,0.13016567]
[1747646108736,4.16563588,2400.6,2400.1,1.52910478]
[1747646108938,4.16580153,2400.5,2400.1,0.13016567]
[1747646109118,4.16608042,2400.4,2400.2,0.36336947]
[1747646109318,4.16608042,2400.4,2400.2,0.2332038]
[1747646109548,4.16614589,2400.3,2400.2,0.2332038]
[1747646109751,4.16652559,2400.1,2399.7,0.8081]
[1747646109941,4.16610864,2400.4,2399.7,3.08293392]
[1747646110315,4.16657762,2400.1,2399.8,0.13015699]
[1747646110637,4.16605405,2400.4,2399.9,4.29689504]
[1747646110836,4.16597233,2400.4,2399.9,0.13015699]
[1747646111056,4.16770859,2399.4,2399.2,8.895]
[1747646111225,0.41677086,2399.4,2399.3,0.58532232]
[1747646111553,0.8311,2400.3,2399.4,0.7869]
[1747646111715,4.99732301,2400.3,2399.8,4.16692574]
[1747646111914,0.8311,2400.3,2399.9,4.16669778]
[1747646112248,0.8311,2400.3,2400.0,4.16659039]
[1747646112454,36.5569,2400.6,2399.9,0.8174]
[1747646112652,4.16593307,2400.5,2399.9,0.8174]
[1747646112826,4.16627007,2400.3,2399.9,0.8174]
[1747646113226,4.16627007,2400.3,2400.0,0.13015414]
[1747646113656,4.16606499,2400.4,2399.9,4.98422441]
[1747646114020,4.16606499,2400.4,2400.0,0.23321161]
[1747646115114,4.16615368,2400.3,2399.9,0.8174]
[1747646115546,4.16615368,2400.3,2400.0,0.13015683]
[1747646116254,4.16615368,2400.3,2399.9,0.8174]
[1747646116628,9.6889,2400.6,2399.9,3.18254475]
[1747646116827,4.16563169,2400.6,2399.9,3.18254475]
[1747646117154,4.16605699,2400.4,2400.0,9.12819408]
[1747646117342,17.703,2400.9,2400.0,9.12819408]
[1747646117343,17.703,2400.9,2400.0,9.25834171]
[1747646117534,4.16573449,2400.6,2400.1,4.16640235]
[1747646118175,4.16581864,2400.5,2400.0,13.19172693]
[1747646118455,4.16536196,2400.8,2400.3,4.16613227]
[1747646118628,0.793,2401.1,2400.4,0.8234]
[1747646118837,4.95783918,2401.1,2400.6,4.16552467]
[1747646119029,4.164952,2401.0,2400.6,4.16552467]
[1747646119327,0.793,2401.1,2400.5,0.23322558]
[1747646119537,0.04151774,2401.0,2400.5,0.23322558]
[1747646119748,4.16510475,2400.9,2400.5,0.23322558]
[1747646119956,4.1654536,2400.7,2400.4,0.8234]
[1747646120556,4.16520926,2400.9,2400.5,0.13012955]
[1747646120765,4.16528884,2400.8,2400.4,4.98929433]
[1747646121056,4.16528884,2400.8,2400.4,4.98936995]
[1747646121366,4.16520233,2400.9,2400.4,0.8234]
[1747646121560,4.16529045,2400.8,2400.4,0.8234]
[1747646121722,0.54144552,2401.0,2400.4,0.8234]
[1747646121923,4.16547329,2400.7,2400.4,0.8234]
[1747646122252,4.16519527,2400.9,2400.5,0.13013036]
[1747646122433,4.16519527,2400.9,2400.5,0.55]
[1747646122853,4.66491096,2401.0,2400.6,0.1301233]
[1747646123181,4.16512763,2400.9,2400.6,0.1301233]
[1747646123482,1.84880386,2400.9,2400.5,0.55]
[1747646123671,4.16545174,2400.7,2400.5,0.55]
[1747646123979,0.8047,2400.6,2400.1,12.92879665]
[1747646124181,8.865,2401.1,2400.2,0.55]
[1747646124182,13.83455255,2401.1,2400.2,0.55]
[1747646124354,13.05960111,2401.2,2400.6,4.16553055]
[1747646124554,13.05960111,2401.2,2400.7,5.53717349]
[1747646124772,4.16476772,2401.1,2400.7,5.53717349]
[1747646125187,0.8047,2401.3,2400.9,0.55]
[1747646125479,1.1805,2401.5,2401.0,0.13011355]
[1747646125845,4.16436526,2401.4,2400.9,4.71501221]
[1747646126046,4.16436526,2401.4,2401.0,0.13010061]
[1747646126258,4.16467187,2401.2,2401.0,0.13010061]
[1747646126579,4.1644982,2401.3,2400.9,0.55]
[1747646126780,4.1644982,2401.3,2401.0,0.13010206]
[1747646127087,5.34469378,2401.5,2401.0,4.16490324]
[1747646127088,4.16427089,2401.4,2401.0,4.16490324]
[1747646127254,1.1805,2401.5,2401.3,4.71441094]
[1747646127448,1.1805,2401.5,2401.4,0.55]
[1747646127655,1.1805,2401.5,2401.2,0.7564]
[1747646127889,5.34466593,2401.5,2401.3,0.13008419]
[1747646128070,1.1805,2401.5,2401.3,0.13008419]
[1747646128274,1.1805,2401.5,2401.4,4.71423752]
[1747646128459,1.1805,2401.5,2401.4,5.80782833]
[1747646128787,1.1805,2401.5,2401.4,6.79206112]
[1747646128974,1.1805,2401.5,2401.4,6.79205753]
[1747646129169,1.1805,2401.5,2401.4,6.66198713]
[1747646129487,1.1805,2401.5,2401.4,7.00371688]
[1747646130787,1.1805,2401.5,2401.4,1.32671658]
[1747646130973,1.1805,2401.5,2401.4,5.33525012]
[1747646131174,1.1805,2401.5,2401.4,5.88525012]
[1747646131355,1.1805,2401.5,2401.4,5.65210449]
[1747646131757,1.1805,2401.5,2401.4,13.69374251]
[1747646131969,1.1805,2401.5,2401.4,13.65210449]
[1747646132179,1.1805,2401.5,2401.4,16.16916943]
[1747646132772,1.1805,2401.5,2401.4,16.40149188]
[1747646133800,1.1805,2401.5,2401.4,16.61245073]
[1747646134497,1.1805,2401.5,2401.4,31.11245073]
[1747646135598,1.1805,2401.5,2401.4,37.15245073]
[1747646136301,0.1,2401.9,2401.8,4.713544]
[1747646136465,0.1,2401.9,2401.8,31.232444]
[1747646136660,0.1,2401.9,2401.8,31.36251097]
[1747646137065,0.1,2401.9,2401.8,45.86251097]
[1747646137291,0.1,2401.9,2401.8,46.09483342]
[1747646138002,0.1,2401.9,2401.8,45.54183342]
[1747646138200,0.1,2401.9,2401.8,8.861]
[1747646138563,0.1,2401.9,2401.8,9.411]
[1747646138767,0.1,2401.9,2401.8,21.574544]
[1747646138997,0.1,2401.9,2401.8,22.367744]
[1747646139601,0.1,2401.9,2401.8,22.70825001]
[1747646139806,0.1,2401.9,2401.8,37.20825001]
[1747646140307,0.1,2401.9,2401.8,37.43926353]
[1747646142469,0.1,2401.9,2401.8,41.68008653]
[1747646142674,0.1,2402.9,2402.8,4.71181122]
[1747646142875,0.1,2402.9,2402.8,31.68989234]
[1747646143405,0.1,2402.9,2402.8,46.18989234]
[1747646144903,0.1,2402.9,2402.8,46.31985105]
[1747646145108,0.1,2402.9,2402.8,46.52351999]
[1747646145881,0.1,2402.9,2402.8,46.75362262]
[1747646146587,0.1,2402.9,2402.8,46.92167701]
[1747646147715,0.1,2402.9,2402.8,46.91967701]
[1747646147881,0.1,2402.9,2402.8,29.22767701]
[1747646148085,0.1,2402.9,2402.8,46.91867701]
[1747646148618,0.1,2402.9,2402.8,46.91767701]
[1747646148946,0.1,2402.9,2402.8,29.22767701]
[1747646149080,0.1,2402.9,2402.8,46.91667701]
[1747646149810,0.1,2402.9,2402.8,29.22767701]
[1747646150018,0.1,2402.9,2402.8,46.68557438]
[1747646151884,0.1,2402.9,2402.8,46.91573293]
[1747646152738,0.1,2402.9,2402.8,51.08757754]
[1747646153039,0.1,2402.9,2402.8,48.94767854]
[1747646153594,0.1,2403.9,2403.8,4.71007987]
[1747646153832,0.1,2403.9,2403.8,31.32940892]
[1747646154199,0.1,2403.9,2403.8,45.82940892]
[1747646154898,0.1,2403.9,2403.8,45.95933587]
[1747646155093,0.1,2403.9,2403.8,46.16900481]
[1747646155328,0.1,2403.9,2403.8,41.87899799]
[1747646155493,0.1,2403.9,2403.8,0.20966894]
[1747646155824,5.04010681,2403.9,2403.8,0.20966894]
[1747646156527,0.8802,2403.9,2403.8,0.20966894]
[1747646156693,0.1,2403.9,2403.6,0.71799846]
[1747646156899,0.1,2403.9,2403.7,12.98715016]
[1747646157110,0.1,2403.9,2403.8,0.55]
[1747646157748,0.1,2403.9,2403.8,4.71007987]
[1747646158902,0.1,2403.9,2403.8,12.71007987]
[1747646159097,0.1,2403.9,2403.8,12.84000511]
[1747646159518,0.1,2403.9,2403.8,27.34000511]
[1747646159718,0.1,2403.9,2403.8,27.57054205]
[1747646160255,0.1,2403.9,2403.8,27.78032779]
[1747646161857,0.1,2403.9,2403.8,28.54742779]
[1747646163064,0.1,2403.9,2403.8,46.18742779]
[1747646163996,0.1,2403.9,2403.8,28.54742779]
[1747646164162,0.1,2403.9,2403.8,46.18642779]
[1747646164713,0.1,2404.9,2404.0,0.55]
[1747646164946,0.1,2404.9,2404.8,4.70834996]
[1747646165146,0.1,2404.9,2404.8,9.374]
[1747646166510,0.1,2404.9,2404.8,9.58378574]
[1747646166710,0.1,2404.9,2404.8,13.7421357]
[1747646166911,0.1,2404.9,2404.8,9.58378574]
[1747646167142,0.1,2404.9,2404.8,11.08324577]
[1747646168058,0.1,2404.9,2404.8,10.95336128]
[1747646168463,0.1,2404.9,2404.8,9.58378574]
[1747646168766,0.1,2404.9,2404.8,13.7421357]
[1747646169230,0.1,2404.9,2404.8,9.58378574]
[1747646169437,0.1,2404.9,2404.8,9.71366663]
[1747646170008,0.1,2404.9,2404.8,13.87201659]
[1747646170633,0.1,2404.9,2404.8,9.71366663]
[1747646171039,0.1,2404.9,2404.8,0.88966663]
[1747646171244,0.1,2404.9,2404.8,9.71266663]
[1747646172648,5.03637705,2404.9,2404.8,0.33966663]
[1747646172849,5.03637705,2404.9,2404.8,0.20978574]
[1747646174016,5.92788633,2404.9,2404.8,0.20978574]
[1747646174953,4.15852289,2404.7,2404.6,0.20978574]
[1747646175358,5.92804611,2404.9,2404.6,0.20978574]
[1747646175523,5.03653683,2404.9,2404.6,0.33969071]
[1747646175946,5.03653683,2404.9,2404.6,0.20978574]
[1747646176344,4.15845214,2404.8,2404.6,0.20978574]
[1747646176560,4.15852289,2404.7,2404.6,0.20978574]
[1747646176758,4.15904175,2404.4,2404.3,0.26231958]
[1747646176934,4.91184175,2404.4,2404.3,0.26231958]
[1747646177822,12.91184175,2404.4,2404.3,0.26231958]
[1747646180159,4.15990681,2403.9,2403.8,0.21086575]
[1747646180779,0.76,2404.0,2403.8,0.21086575]
[1747646180979,4.1594835,2404.2,2403.8,0.21086575]
[1747646181183,0.76,2404.4,2403.9,8.95294152]
[1747646181484,0.7882,2404.6,2404.2,4.1593485]
[1747646181668,0.7882,2404.6,2404.2,4.15927993]
[1747646181872,4.15895546,2404.5,2404.2,0.55]
[1747646182179,4.15895546,2404.5,2404.3,0.12994152]
[1747646182568,4.15904175,2404.4,2404.3,0.12994152]
[1747646182784,4.15895343,2404.5,2404.1,0.55]
[1747646182963,4.15895343,2404.5,2404.3,0.21086277]
[1747646184379,4.15895343,2404.5,2404.2,0.21086277]
[1747646186285,4.15917208,2404.4,2404.2,0.21086277]
[1747646186451,4.15887592,2404.5,2404.2,0.21086277]
[1747646187281,4.15904982,2404.4,2404.2,0.21086277]
[1747646187488,0.7882,2404.6,2404.3,0.55]
[1747646187780,0.8683,2404.9,2404.6,4.15860635]
[1747646187980,0.1,2404.9,2404.6,4.15860635]
[1747646188284,0.1,2404.9,2404.8,5.54034996]
[1747646188485,0.1,2404.9,2404.8,15.08569417]
[1747646188790,0.1,2404.9,2404.8,15.04411983]
[1747646189212,0.1,2404.9,2404.8,15.17402593]
[1747646189564,0.1,2404.9,2404.8,15.3848887]
[1747646190469,0.1,2404.9,2404.8,32.9648887]
[1747646190676,0.1,2404.9,2404.8,9.91432126]
[1747646190876,0.1,2404.9,2404.8,9.36432126]
[1747646191077,4.25817705,2404.9,2404.8,0.57232126]
[1747646191602,4.25817705,2404.9,2404.8,0.44241516]
[1747646192016,5.04197705,2404.9,2404.8,0.44241516]
[1747646192314,5.08349479,2404.9,2404.8,0.21086277]
[1747646192525,6.88614722,2404.9,2404.8,0.21086277]
[1747646192686,10.54945587,2404.9,2404.8,0.21086277]
[1747646192889,18.50793813,2404.9,2404.8,0.21086277]
[1747646193097,4.15912571,2404.4,2404.0,8.792]
[1747646193500,4.15938773,2404.2,2404.1,0.12993109]
[1747646193709,0.8238,2404.3,2404.1,0.12993109]
[1747646193867,0.8238,2404.8,2404.3,4.1590689]
[1747646194091,4.15921474,2404.3,2404.2,0.12993109]
[1747646194430,8.64632339,2404.3,2404.2,0.12993109]
[1747646194602,0.8238,2404.2,2403.6,0.51778393]
[1747646194794,12.44530865,2404.6,2403.7,0.55]
[1747646195125,0.8238,2404.5,2404.1,4.15951351]
[1747646195422,0.8238,2404.5,2404.2,4.15927321]
[1747646195611,4.98268944,2404.5,2404.0,4.15965658]
[1747646195812,4.98268944,2404.5,2404.0,12.95265658]
[1747646195989,4.98270234,2404.5,2404.0,8.793]
[1747646196183,4.15912894,2404.4,2404.1,0.12992903]
[1747646196584,0.8238,2404.5,2404.1,0.12992903]
[1747646196829,4.9826766,2404.5,2404.1,4.2894152]
[1747646196995,0.8238,2404.5,2404.2,0.12992903]
[1747646197193,4.98268561,2404.5,2404.2,0.12992903]
[1747646197421,4.15905895,2404.4,2404.0,8.793]
[1747646197625,4.15905895,2404.4,2404.0,12.9527016]
[1747646197827,4.15905895,2404.4,2404.0,8.793]
[1747646198007,4.15905895,2404.4,2404.1,0.12992751]
[1747646198400,4.15920209,2404.4,2404.0,8.793]
[1747646198582,4.15904175,2404.4,2404.0,8.793]
[1747646198787,4.15924358,2404.3,2404.1,0.21087917]
[1747646198983,0.8238,2404.5,2404.1,4.3703498]
[1747646199224,4.92704254,2404.7,2404.2,4.1593084]
[1747646199418,0.7684,2404.7,2404.1,0.21087917]
[1747646199789,4.15915541,2404.4,2404.2,0.12992388]
[1747646199989,4.15938773,2404.2,2404.1,0.21087917]
[1747646200318,4.15978068,2404.0,2403.8,0.55]
[1747646200489,4.15978068,2404.0,2403.7,9.05651364]
[1747646200691,4.15972792,2404.1,2403.8,0.23185275]
[1747646200910,4.15972526,2404.1,2403.8,0.23185275]
[1747646201114,4.15973619,2404.0,2403.8,0.23185275]
[1747646201423,4.15945798,2404.2,2403.8,4.39192169]
[1747646201725,4.15945798,2404.2,2403.8,4.16006894]
[1747646201920,4.15956166,2404.1,2403.9,0.12994151]
[1747646202107,4.15973377,2404.0,2403.9,0.12994151]
[1747646202309,5.06899777,2404.1,2403.7,8.793]
[1747646202520,4.15973377,2404.0,2403.7,8.793]
[1747646202718,4.16001119,2403.9,2403.7,8.793]
[1747646202935,4.16001119,2403.9,2403.8,0.12994943]
[1747646203705,4.15974291,2404.0,2403.8,0.12994943]
[1747646203912,0.7753,2404.3,2403.8,0.21106992]
[1747646204141,4.93462406,2404.3,2403.8,4.88415609]
[1747646205057,4.1594071,2404.2,2403.8,0.72415639]
[1747646205220,4.1594071,2404.2,2403.8,0.21106992]
[1747646205417,4.15956551,2404.1,2403.8,0.21106992]
[1747646205617,0.81681774,2404.3,2403.8,0.21106992]
[1747646205921,4.9346524,2404.3,2403.9,0.12994242]
[1747646206454,4.9346524,2404.3,2403.8,4.15998427]
[1747646206455,4.15939097,2404.2,2403.8,4.15998427]
[1747646206656,0.7753,2404.3,2403.9,0.41599843]
[1747646206953,0.7753,2404.3,2403.8,4.71007987]
[1747646206954,4.93454519,2404.3,2403.8,4.71007987]
[1747646207155,4.93454519,2404.3,2404.0,0.12993464]
[1747646207529,4.15940629,2404.2,2404.0,0.12993464]
[1747646207846,4.15955165,2404.2,2403.9,0.21101227]
[1747646208053,0.7753,2404.3,2403.9,0.21101227]
[1747646208252,4.15921251,2404.4,2404.0,4.15972414]
[1747646208569,4.15921251,2404.4,2403.9,0.21101227]
[1747646208570,4.15937237,2404.3,2403.9,0.21101227]
[1747646208744,4.15939336,2404.2,2404.0,0.12993749]
[1747646209050,4.15931333,2404.3,2404.0,0.12993749]
[1747646209261,4.15905896,2404.4,2404.0,0.21101227]
[1747646209467,4.97946205,2404.8,2404.3,4.15913321]
[1747646209641,0.8211,2404.8,2404.4,4.15897103]
[1747646209836,4.15854208,2404.7,2404.2,4.91692706]
[1747646210053,4.1588384,2404.6,2404.1,4.70944376]
[1747646210234,4.15876749,2404.6,2404.1,4.70944376]
[1747646210433,4.15876749,2404.6,2404.2,4.52106017]
[1747646210953,4.15876749,2404.6,2404.2,0.36167715]
[1747646211156,4.98014175,2404.4,2404.3,0.12991866]
[1747646211547,4.98014175,2404.4,2404.0,8.794]
[1747646212047,4.1589135,2404.5,2403.6,0.4315121]
[1747646212048,4.16025294,2403.7,2403.6,0.4315121]
[1747646212369,0.8093,2403.8,2403.6,0.4315121]
[1747646212668,0.8093,2404.3,2403.9,4.1598921]
[1747646212881,0.8093,2404.3,2403.7,0.8296]
[1747646213069,4.15938773,2404.2,2403.8,4.7100666]
[1747646213244,4.15973377,2404.0,2403.9,0.12993559]
[1747646214039,4.16012044,2403.8,2403.6,0.4315121]
[1747646214254,4.16025294,2403.7,2403.6,0.4315121]
[1747646214567,4.20177068,2403.7,2403.6,0.4315121]
[1747646214767,8.05722066,2403.7,2403.6,0.4315121]
[1747646214944,16.05722066,2403.7,2403.6,0.4315121]
[1747646215149,16.01570292,2403.7,2403.6,0.4315121]
[1747646216373,4.97555294,2403.7,2403.6,0.4315121]
[1747646218888,4.97555294,2403.7,2403.6,0.16799846]
[1747646219182,4.16025294,2403.7,2403.6,0.16799846]
[1747646221459,4.96905294,2403.7,2403.6,0.16799846]
[1747646222967,13.01057068,2403.7,2403.6,0.16799846]
[1747646223164,16.808151,2403.7,2403.6,0.16799846]
[1747646224494,26.878151,2403.7,2403.6,0.06799846]
[1747646224669,26.878151,2403.7,2402.9,0.26351364]
[1747646224670,4.16146483,2403.0,2402.9,0.26351364]
[1747646224855,4.1621391,2402.7,2402.3,8.26351364]
[1747646225054,0.04151774,2402.7,2402.4,0.23190359]
[1747646225297,4.95369036,2402.5,2402.4,0.23190359]
[1747646225455,8.76,2402.6,2402.4,0.23190359]
[1747646225656,10.8612,2403.2,2402.6,4.16207467]
[1747646225868,4.16176396,2402.9,2402.4,4.39439581]
[1747646226163,4.16186221,2402.8,2402.4,0.55]
[1747646226380,4.16185971,2402.8,2402.5,0.13001225]
[1747646226806,4.16173911,2402.9,2402.4,4.16248595]
[1747646226968,4.16181352,2402.8,2402.3,9.80151364]
[1747646227170,4.16220808,2402.6,2402.4,0.13001115]
[1747646227375,4.16228866,2402.6,2402.4,0.13001115]
[1747646228003,4.16228866,2402.6,2402.3,0.777]
[1747646228664,4.16237904,2402.5,2402.3,0.777]
[1747646228859,4.16206151,2402.7,2402.2,8.76]
[1747646229067,4.16226452,2402.6,2402.2,0.55]
[1747646229400,4.16234822,2402.5,2402.2,0.55]
[1747646229583,0.78805449,2402.7,2402.2,4.71270919]
[1747646229911,4.97361197,2402.8,2402.4,4.16245308]
[1747646230120,4.16191197,2402.8,2402.4,4.16245308]
[1747646230269,0.7608,2403.0,2402.6,4.1620635]
[1747646230587,0.7608,2403.0,2402.5,4.16225235]
[1747646230588,4.16159239,2403.0,2402.5,4.16225235]
[1747646230897,12.46852,2403.2,2402.3,4.92605619]
[1747646231097,4.16196085,2402.8,2402.3,4.92608815]
[1747646231404,0.04151774,2402.7,2402.2,0.55]
[1747646231571,4.16250484,2402.4,2402.1,0.1]
[1747646231773,4.99499343,2402.4,2402.1,0.1]
[1747646232169,4.16268279,2402.3,2402.1,0.1]
[1747646232375,4.16285072,2402.2,2402.1,0.1]